[Event "*** Titled Tuesday Blitz"]
[Site "Chess.com"]
[Date "2020.04.07"]
[Round "4"]
[White "Dyadya81"]
[Black "Kingsman132"]
[Result "0-1"]
[WhiteElo "2709"]
[BlackElo "2412"]
[TimeControl "180+1"]
[EndTime "13:42:49 PDT"]
[Termination "Kingsman132 won by resignation"]

1. e4 {[%clk 0:03:00.9]} 1... e6 {[%clk 0:02:57.6]} 2. d4 {[%clk 0:03:00.6]}
2... d5 {[%clk 0:02:58.1]} 3. Nc3 {[%clk 0:03:00.7]} 3... Bb4 {[%clk 0:02:55.3]}
4. e5 {[%clk 0:03:00.3]} 4... c5 {[%clk 0:02:54.5]} 5. a3 {[%clk 0:03:00.2]}
5... Bxc3+ {[%clk 0:02:52]} 6. bxc3 {[%clk 0:03:01.1]} 6... Ne7 {[%clk
0:02:50.4]} 7. Qg4 {[%clk 0:02:58.7]} 7... O-O {[%clk 0:02:47.6]} 8. Nf3 {[%clk
0:02:56.2]} 8... Nf5 {[%clk 0:02:43.7]} 9. Bd3 {[%clk 0:02:52]} 9... c4 {[%clk
0:02:43.8]} 10. Bxf5 {[%clk 0:02:51.7]} 10... exf5 {[%clk 0:02:43.6]} 11. Qg3
{[%clk 0:02:52.1]} 11... Re8 {[%clk 0:02:39.3]} 12. Bh6 {[%clk 0:02:49.9]} 12...
Qf6 {[%clk 0:02:31.5]} 13. Bg5 {[%clk 0:02:47.5]} 13... Qg6 {[%clk 0:02:31.9]}
14. h4 {[%clk 0:02:46.5]} 14... f4 {[%clk 0:02:26.6]} 15. Bxf4 {[%clk 0:02:41]}
15... Qxc2 {[%clk 0:02:25.5]} 16. O-O {[%clk 0:02:36.3]} 16... Nc6 {[%clk
0:02:25.4]} 17. h5 {[%clk 0:02:30.3]} 17... Re6 {[%clk 0:02:22.3]} 18. Ng5
{[%clk 0:02:25.5]} 18... Re8 {[%clk 0:02:20.2]} 19. Rfe1 {[%clk 0:02:07]} 19...
Ne7 {[%clk 0:02:15.2]} 20. Rac1 {[%clk 0:01:58.3]} 20... Qf5 {[%clk 0:02:08.7]}
21. h6 {[%clk 0:01:49.7]} 21... Ng6 {[%clk 0:02:08]} 22. Bd2 {[%clk 0:01:49.3]}
22... gxh6 {[%clk 0:02:05.7]} 23. Nf3 {[%clk 0:01:46.4]} 23... Qg4 {[%clk
0:02:02.6]} 24. Bxh6 {[%clk 0:01:43.4]} 24... Qxg3 {[%clk 0:01:59.4]} 25. fxg3
{[%clk 0:01:44.3]} 25... b5 {[%clk 0:01:55.7]} 26. Ng5 {[%clk 0:01:43.7]} 26...
a5 {[%clk 0:01:50.5]} 27. Rf1 {[%clk 0:01:44]} 27... Be6 {[%clk 0:01:45.7]} 28.
Rf6 {[%clk 0:01:44.4]} 28... Re7 {[%clk 0:01:42]} 29. Rb1 {[%clk 0:01:37.1]}
29... Rb8 {[%clk 0:01:38.7]} 30. Kf2 {[%clk 0:01:37.5]} 30... Rbb7 {[%clk
0:01:34.2]} 31. Ke3 {[%clk 0:01:37.1]} 31... Re8 {[%clk 0:01:31.8]} 32. Kd2
{[%clk 0:01:35.5]} 32... Bg4 {[%clk 0:01:28.7]} 33. Rd6 {[%clk 0:01:31.4]} 33...
Ne7 {[%clk 0:01:24.8]} 34. Rf1 {[%clk 0:01:09.3]} 34... Nf5 {[%clk 0:01:19.1]}
35. Rf6 {[%clk 0:01:09]} 35... b4 {[%clk 0:01:17.5]} 36. axb4 {[%clk 0:01:05.5]}
36... axb4 {[%clk 0:01:15.1]} 37. cxb4 {[%clk 0:01:04.3]} 37... Nxg3 {[%clk
0:01:12.1]} 38. R1f4 {[%clk 0:01:03.2]} 38... Bh5 {[%clk 0:01:09.8]} 39. e6
{[%clk 0:01:00.4]} 39... Ne4+ {[%clk 0:01:01.7]} 40. Nxe4 {[%clk 0:00:56.5]}
40... dxe4 {[%clk 0:01:02.6]} 41. d5 {[%clk 0:00:55.2]} 41... Rd8 {[%clk
0:01:02.2]} 42. Kc3 {[%clk 0:00:54.2]} 42... Rxd5 {[%clk 0:01:01.8]} 43. Rxe4
{[%clk 0:00:46.3]} 43... Rd3+ {[%clk 0:01:01.3]} 44. Kxc4 {[%clk 0:00:44.8]}
44... Rd8 {[%clk 0:01:01.1]} 45. e7 {[%clk 0:00:41.6]} 45... Rc8+ {[%clk
0:01:00.8]} 46. Kb3 {[%clk 0:00:38.8]} 46... Bd1+ {[%clk 0:00:59.7]} 47. Kb2
{[%clk 0:00:38.8]} 47... Re8 {[%clk 0:00:54.9]} 48. Rd6 {[%clk 0:00:37.5]} 48...
Bh5 {[%clk 0:00:51.8]} 49. Rd8 {[%clk 0:00:22.4]} 49... f5 {[%clk 0:00:50.2]}
50. Rxe8+ {[%clk 0:00:21.3]} 50... Bxe8 {[%clk 0:00:48.6]} 51. Rd4 {[%clk
0:00:19.2]} 51... Kf7 {[%clk 0:00:48]} 52. Bf8 {[%clk 0:00:16.7]} 52... Rb6
{[%clk 0:00:45]} 53. Rh4 {[%clk 0:00:15]} 53... h5 {[%clk 0:00:40.5]} 54. Kc3
{[%clk 0:00:14.1]} 54... Rc6+ {[%clk 0:00:38.3]} 55. Kd4 {[%clk 0:00:14.3]}
55... Kf6 {[%clk 0:00:35.3]} 56. Rh1 {[%clk 0:00:12.3]} 56... Rb6 {[%clk
0:00:35.4]} 57. Kc5 {[%clk 0:00:11.8]} 57... Rb5+ {[%clk 0:00:32.6]} 58. Kc4
{[%clk 0:00:12.2]} 58... f4 {[%clk 0:00:30.7]} 59. Rd1 {[%clk 0:00:11.8]} 59...
Rg5 {[%clk 0:00:27.7]} 60. Rd8 {[%clk 0:00:11.8]} 60... Kf7 {[%clk 0:00:24.4]}
61. Rd4 {[%clk 0:00:10.9]} 61... Bb5+ {[%clk 0:00:20.4]} 62. Kc3 {[%clk
0:00:09.1]} 62... Rg3+ {[%clk 0:00:20.1]} 63. Kd2 {[%clk 0:00:09.5]} 63... Rxg2+
{[%clk 0:00:19.7]} 64. Ke1 {[%clk 0:00:10.1]} 64... Rg1+ {[%clk 0:00:19.8]} 65.
Kd2 {[%clk 0:00:10.7]} 65... Rg2+ {[%clk 0:00:19.4]} 66. Kd1 {[%clk 0:00:10.4]}
66... f3 {[%clk 0:00:19.8]} 67. Rf4+ {[%clk 0:00:10]} 67... Ke8 {[%clk
0:00:19.4]} 68. Rd4 {[%clk 0:00:06.5]} 68... f2 {[%clk 0:00:17.3]} 69. Rd8+
{[%clk 0:00:05.6]} 69... Kf7 {[%clk 0:00:17.4]} 70. e8=Q+ {[%clk 0:00:04.4]}
70... Bxe8 {[%clk 0:00:16.7]} 71. Ke2 {[%clk 0:00:05]} 71... Bb5+ {[%clk
0:00:16.7]} 72. Kf3 {[%clk 0:00:04.1]} 72... f1=Q+ {[%clk 0:00:16.7]} 0-1

[Event "*** Titled Tuesday Blitz"]
[Site "Chess.com"]
[Date "2020.04.07"]
[Round "4"]
[White "Incognito_Knight"]
[Black "valeriocarnicelli"]
[Result "1/2-1/2"]
[WhiteElo "2708"]
[BlackElo "2609"]
[TimeControl "180+1"]
[EndTime "13:42:56 PDT"]
[Termination "Game drawn - insufficient material"]

1. d4 {[%clk 0:03:00.7]} 1... Nf6 {[%clk 0:02:59.6]} 2. c4 {[%clk 0:03:00.9]}
2... c6 {[%clk 0:02:59.7]} 3. Nf3 {[%clk 0:03:00.5]} 3... d5 {[%clk 0:02:59.9]}
4. Nbd2 {[%clk 0:03:00.4]} 4... e6 {[%clk 0:02:59.1]} 5. g3 {[%clk 0:03:00]}
5... Nbd7 {[%clk 0:02:57.1]} 6. Bg2 {[%clk 0:03:00]} 6... b6 {[%clk 0:02:56.5]}
7. O-O {[%clk 0:02:59.6]} 7... Bb7 {[%clk 0:02:56.6]} 8. Qc2 {[%clk 0:02:59.2]}
8... Be7 {[%clk 0:02:54.5]} 9. e4 {[%clk 0:02:59.1]} 9... dxe4 {[%clk
0:02:54.4]} 10. Nxe4 {[%clk 0:02:59.5]} 10... Nxe4 {[%clk 0:02:51.6]} 11. Qxe4
{[%clk 0:02:59.3]} 11... Nf6 {[%clk 0:02:52]} 12. Qc2 {[%clk 0:02:55.8]} 12...
c5 {[%clk 0:02:52.2]} 13. Rd1 {[%clk 0:02:51.7]} 13... Be4 {[%clk 0:02:44.9]}
14. Qe2 {[%clk 0:02:42.5]} 14... Qc8 {[%clk 0:02:27.5]} 15. Bg5 {[%clk
0:02:41.2]} 15... Bb7 {[%clk 0:02:12.8]} 16. d5 {[%clk 0:02:29.9]} 16... O-O
{[%clk 0:02:09.6]} 17. d6 {[%clk 0:02:24.8]} 17... Bd8 {[%clk 0:02:07.8]} 18.
Ne5 {[%clk 0:02:22.9]} 18... Bxg2 {[%clk 0:02:05.7]} 19. Kxg2 {[%clk 0:02:23.8]}
19... Nd7 {[%clk 0:02:01.4]} 20. Bxd8 {[%clk 0:01:52.4]} 20... Rxd8 {[%clk
0:02:00.9]} 21. f4 {[%clk 0:01:43.9]} 21... Nxe5 {[%clk 0:01:51.4]} 22. fxe5
{[%clk 0:01:42.6]} 22... Qb7+ {[%clk 0:01:46]} 23. Qf3 {[%clk 0:01:31.9]} 23...
Qxf3+ {[%clk 0:01:44.3]} 24. Kxf3 {[%clk 0:01:32.8]} 24... Kf8 {[%clk
0:01:31.5]} 25. a4 {[%clk 0:01:31.3]} 25... Ke8 {[%clk 0:01:29.4]} 26. Ke4
{[%clk 0:01:31.3]} 26... Kd7 {[%clk 0:01:23]} 27. Rf1 {[%clk 0:01:18.2]} 27...
Rf8 {[%clk 0:01:22.6]} 28. Ra3 {[%clk 0:01:11.9]} 28... Kc6 {[%clk 0:01:21.2]}
29. Raf3 {[%clk 0:00:57]} 29... f5+ {[%clk 0:01:19.5]} 30. exf6 {[%clk
0:00:55.7]} 30... gxf6 {[%clk 0:01:19.7]} 31. Rxf6 {[%clk 0:00:54.9]} 31... Rxf6
{[%clk 0:01:20]} 32. Rxf6 {[%clk 0:00:55.2]} 32... Kxd6 {[%clk 0:01:20.9]} 33.
Rf7 {[%clk 0:00:53.7]} 33... h5 {[%clk 0:01:12.2]} 34. Kf4 {[%clk 0:00:32.8]}
34... Rg8 {[%clk 0:01:08.6]} 35. h3 {[%clk 0:00:28.2]} 35... a6 {[%clk
0:01:06.1]} 36. g4 {[%clk 0:00:22.1]} 36... hxg4 {[%clk 0:01:04.9]} 37. hxg4
{[%clk 0:00:23]} 37... Rh8 {[%clk 0:01:05]} 38. g5 {[%clk 0:00:18.3]} 38... Rh4+
{[%clk 0:01:04.5]} 39. Kg3 {[%clk 0:00:18]} 39... Rxc4 {[%clk 0:01:01.6]} 40. g6
{[%clk 0:00:17.2]} 40... Rc1 {[%clk 0:00:59.5]} 41. Kg2 {[%clk 0:00:08.6]} 41...
Rc2+ {[%clk 0:00:59]} 42. Kg3 {[%clk 0:00:07.3]} 42... Rc1 {[%clk 0:00:59.1]}
43. Kg2 {[%clk 0:00:05.9]} 43... Rc2+ {[%clk 0:00:57.5]} 44. Kh3 {[%clk
0:00:05.9]} 44... Rc1 {[%clk 0:00:57.1]} 45. Rf2 {[%clk 0:00:04.1]} 45... Rg1
{[%clk 0:00:55.7]} 46. Rf6 {[%clk 0:00:02.6]} 46... Ke5 {[%clk 0:00:53.7]} 47.
Rf8 {[%clk 0:00:02.4]} 47... Rxg6 {[%clk 0:00:53.1]} 48. Rb8 {[%clk 0:00:02.9]}
48... b5 {[%clk 0:00:48.5]} 49. axb5 {[%clk 0:00:02.9]} 49... axb5 {[%clk
0:00:49.1]} 50. Rxb5 {[%clk 0:00:03.6]} 50... Kd4 {[%clk 0:00:49.1]} 51. Rb8
{[%clk 0:00:03.4]} 51... e5 {[%clk 0:00:47.1]} 52. Rd8+ {[%clk 0:00:04]} 52...
Kc4 {[%clk 0:00:45.8]} 53. Re8 {[%clk 0:00:04.3]} 53... Kd4 {[%clk 0:00:44.3]}
54. Rd8+ {[%clk 0:00:04.6]} 54... Kc4 {[%clk 0:00:28.1]} 55. Re8 {[%clk
0:00:05]} 55... Kb3 {[%clk 0:00:25.5]} 56. Rxe5 {[%clk 0:00:04.3]} 56... c4
{[%clk 0:00:25.5]} 57. Rb5+ {[%clk 0:00:04.6]} 57... Kc2 {[%clk 0:00:25.7]} 58.
Rb4 {[%clk 0:00:04.8]} 58... Kd3 {[%clk 0:00:23.7]} 59. Kh4 {[%clk 0:00:03.7]}
59... Rg8 {[%clk 0:00:16.3]} 60. Kh3 {[%clk 0:00:04]} 60... Rg1 {[%clk
0:00:14.5]} 61. Kh2 {[%clk 0:00:04.3]} 61... Rg4 {[%clk 0:00:13.2]} 62. Kh3
{[%clk 0:00:03.9]} 62... Re4 {[%clk 0:00:11.6]} 63. Kg3 {[%clk 0:00:03.2]} 63...
Re8 {[%clk 0:00:09.7]} 64. Kf2 {[%clk 0:00:03.1]} 64... Re7 {[%clk 0:00:08.4]}
65. Kf1 {[%clk 0:00:02.2]} 65... Re6 {[%clk 0:00:08.5]} 66. Kf2 {[%clk
0:00:02.8]} 66... Rf6+ {[%clk 0:00:08.8]} 67. Kg3 {[%clk 0:00:03.1]} 67... Rf5
{[%clk 0:00:09]} 68. Kg2 {[%clk 0:00:03.6]} 68... Rd5 {[%clk 0:00:09]} 69. Kf3
{[%clk 0:00:03.7]} 69... Rd4 {[%clk 0:00:09.2]} 70. Kf2 {[%clk 0:00:03.8]} 70...
Kc2 {[%clk 0:00:08.1]} 71. Ke3 {[%clk 0:00:03.5]} 71... Rh4 {[%clk 0:00:07.7]}
72. Kf3 {[%clk 0:00:03.3]} 72... Rh3+ {[%clk 0:00:07.7]} 73. Kf2 {[%clk
0:00:03.4]} 73... Rb3 {[%clk 0:00:07.2]} 74. Rxc4+ {[%clk 0:00:03.7]} 74... Kxb2
{[%clk 0:00:07.6]} 75. Re4 {[%clk 0:00:03.3]} 75... Rc3 {[%clk 0:00:07.6]} 76.
Re3 {[%clk 0:00:03.8]} 76... Rxe3 {[%clk 0:00:07.5]} 77. Kxe3 {[%clk 0:00:04.7]}
1/2-1/2

[Event "*** Titled Tuesday Blitz"]
[Site "Chess.com"]
[Date "2020.04.07"]
[Round "4"]
[White "vlad_Sid"]
[Black "jk13"]
[Result "1/2-1/2"]
[WhiteElo "2635"]
[BlackElo "2818"]
[TimeControl "180+1"]
[EndTime "13:42:57 PDT"]
[Termination "Game drawn - insufficient material"]

1. c4 {[%clk 0:03:00.9]} 1... e6 {[%clk 0:03:00.2]} 2. g3 {[%clk 0:03:00.8]}
2... Nf6 {[%clk 0:03:00.5]} 3. Bg2 {[%clk 0:03:01.3]} 3... d5 {[%clk 0:03:01.4]}
4. Nf3 {[%clk 0:03:01.9]} 4... dxc4 {[%clk 0:03:02]} 5. Qa4+ {[%clk 0:03:01.4]}
5... c6 {[%clk 0:03:01.8]} 6. Qxc4 {[%clk 0:03:00.7]} 6... b5 {[%clk 0:03:02.3]}
7. Qc2 {[%clk 0:03:00.4]} 7... Bb7 {[%clk 0:03:02.7]} 8. O-O {[%clk 0:02:58.6]}
8... Nbd7 {[%clk 0:03:02.1]} 9. b3 {[%clk 0:02:50.2]} 9... a6 {[%clk 0:03:00.5]}
10. Bb2 {[%clk 0:02:50.5]} 10... c5 {[%clk 0:02:58.1]} 11. a4 {[%clk 0:02:42.2]}
11... Rc8 {[%clk 0:02:55.2]} 12. d3 {[%clk 0:02:41.8]} 12... Qb6 {[%clk
0:02:53.9]} 13. Nbd2 {[%clk 0:02:35]} 13... Be7 {[%clk 0:02:54.4]} 14. Rfc1
{[%clk 0:02:34]} 14... O-O {[%clk 0:02:54.6]} 15. axb5 {[%clk 0:02:30.2]} 15...
axb5 {[%clk 0:02:54.5]} 16. Nf1 {[%clk 0:02:29.6]} 16... Nd5 {[%clk 0:02:50.3]}
17. N1d2 {[%clk 0:02:20.6]} 17... Nb4 {[%clk 0:02:48.9]} 18. Qd1 {[%clk
0:02:20.3]} 18... Bf6 {[%clk 0:02:39.3]} 19. Bxf6 {[%clk 0:02:17.9]} 19... Nxf6
{[%clk 0:02:40.2]} 20. Nb1 {[%clk 0:01:28.1]} 20... Rfd8 {[%clk 0:02:21]} 21.
Na3 {[%clk 0:01:22.6]} 21... Ra8 {[%clk 0:02:16]} 22. Nc2 {[%clk 0:01:21.5]}
22... Na2 {[%clk 0:02:16.2]} 23. Rcb1 {[%clk 0:01:04]} 23... Nc3 {[%clk
0:02:16.3]} 24. Qe1 {[%clk 0:01:04.1]} 24... Nxb1 {[%clk 0:02:14.7]} 25. Rxb1
{[%clk 0:01:05]} 25... Ra2 {[%clk 0:02:07.4]} 26. Ne3 {[%clk 0:01:04.9]} 26...
Nd5 {[%clk 0:02:02.4]} 27. Nxd5 {[%clk 0:01:02.9]} 27... Bxd5 {[%clk 0:02:02.5]}
28. e4 {[%clk 0:01:02.3]} 28... Bb7 {[%clk 0:01:59.1]} 29. Bf1 {[%clk
0:01:02.4]} 29... Qa5 {[%clk 0:01:51.3]} 30. b4 {[%clk 0:00:55.9]} 30... cxb4
{[%clk 0:01:49.6]} 31. Qxb4 {[%clk 0:00:53.2]} 31... Qxb4 {[%clk 0:01:45.3]} 32.
Rxb4 {[%clk 0:00:54.1]} 32... Bc6 {[%clk 0:01:35]} 33. Nd4 {[%clk 0:00:53.5]}
33... Be8 {[%clk 0:01:35.2]} 34. Nxb5 {[%clk 0:00:45.4]} 34... Rb8 {[%clk
0:01:25.1]} 35. Nc3 {[%clk 0:00:45.3]} 35... Rxb4 {[%clk 0:01:23.5]} 36. Nxa2
{[%clk 0:00:45.6]} 36... Rb3 {[%clk 0:01:22]} 37. Nc1 {[%clk 0:00:45.1]} 37...
Rc3 {[%clk 0:01:20.1]} 38. Na2 {[%clk 0:00:45.4]} 38... Rb3 {[%clk 0:01:16.7]}
39. Nc1 {[%clk 0:00:45.2]} 39... Rb1 {[%clk 0:01:15]} 40. Ne2 {[%clk 0:00:44]}
40... e5 {[%clk 0:01:08.8]} 41. f4 {[%clk 0:00:35.6]} 41... f6 {[%clk
0:01:03.1]} 42. Kf2 {[%clk 0:00:33.4]} 42... Bb5 {[%clk 0:00:58.2]} 43. Nc3
{[%clk 0:00:32.5]} 43... Rb2+ {[%clk 0:00:58.3]} 44. Ke3 {[%clk 0:00:31.4]}
44... Bc6 {[%clk 0:00:57.6]} 45. Be2 {[%clk 0:00:31.8]} 45... Kf7 {[%clk
0:00:56.5]} 46. d4 {[%clk 0:00:29.2]} 46... exd4+ {[%clk 0:00:44]} 47. Kxd4
{[%clk 0:00:30.1]} 47... Ke7 {[%clk 0:00:41.8]} 48. h4 {[%clk 0:00:29.4]} 48...
Rc2 {[%clk 0:00:38.1]} 49. Kd3 {[%clk 0:00:28.7]} 49... Rc1 {[%clk 0:00:37.4]}
50. Bd1 {[%clk 0:00:28.2]} 50... Ra1 {[%clk 0:00:35.2]} 51. Kd4 {[%clk
0:00:27.3]} 51... h6 {[%clk 0:00:30.9]} 52. h5 {[%clk 0:00:27.1]} 52... Ra5
{[%clk 0:00:30.6]} 53. g4 {[%clk 0:00:26.8]} 53... Kd6 {[%clk 0:00:29.8]} 54.
Bb3 {[%clk 0:00:24.7]} 54... Bd7 {[%clk 0:00:27.5]} 55. e5+ {[%clk 0:00:22.2]}
55... fxe5+ {[%clk 0:00:26.6]} 56. fxe5+ {[%clk 0:00:23.1]} 56... Rxe5 {[%clk
0:00:18.4]} 57. Ne4+ {[%clk 0:00:22.6]} 57... Rxe4+ {[%clk 0:00:19]} 58. Kxe4
{[%clk 0:00:23.5]} 58... Bxg4 {[%clk 0:00:19.9]} 59. Bf7 {[%clk 0:00:18.8]}
59... Ke7 {[%clk 0:00:20.5]} 60. Bg6 {[%clk 0:00:18.6]} 60... Kf6 {[%clk
0:00:20.9]} 61. Kf4 {[%clk 0:00:18]} 61... Be6 {[%clk 0:00:21.1]} 62. Bd3 {[%clk
0:00:15]} 62... Bf7 {[%clk 0:00:20]} 63. Be2 {[%clk 0:00:15.1]} 63... Be8 {[%clk
0:00:20.7]} 64. Bd1 {[%clk 0:00:15.3]} 64... Bd7 {[%clk 0:00:20.8]} 65. Be2
{[%clk 0:00:15.7]} 65... Be6 {[%clk 0:00:21]} 66. Bd1 {[%clk 0:00:16]} 66... Bf7
{[%clk 0:00:21.6]} 67. Bf3 {[%clk 0:00:16.1]} 67... Ke6 {[%clk 0:00:21.7]} 68.
Bd1 {[%clk 0:00:15.9]} 68... Be8 {[%clk 0:00:19.6]} 69. Be2 {[%clk 0:00:16]}
69... Bc6 {[%clk 0:00:19.5]} 70. Bd1 {[%clk 0:00:16]} 70... Bg2 {[%clk
0:00:18.9]} 71. Bb3+ {[%clk 0:00:16]} 71... Kf6 {[%clk 0:00:19.1]} 72. Bd1
{[%clk 0:00:16.9]} 72... Bh3 {[%clk 0:00:19.4]} 73. Be2 {[%clk 0:00:17.1]} 73...
Bg2 {[%clk 0:00:19.7]} 74. Bd1 {[%clk 0:00:17.4]} 74... Bf1 {[%clk 0:00:20.2]}
75. Bf3 {[%clk 0:00:17]} 75... Bd3 {[%clk 0:00:20.3]} 76. Bd1 {[%clk 0:00:17.2]}
76... Bf5 {[%clk 0:00:20.3]} 77. Bf3 {[%clk 0:00:17.5]} 77... Be6 {[%clk
0:00:19.6]} 78. Bd1 {[%clk 0:00:17.8]} 78... Bf7 {[%clk 0:00:19.8]} 79. Bf3
{[%clk 0:00:17.9]} 79... g6 {[%clk 0:00:20.2]} 80. hxg6 {[%clk 0:00:17.5]} 80...
Bxg6 {[%clk 0:00:21.1]} 81. Kg3 {[%clk 0:00:17.8]} 81... Kg5 {[%clk 0:00:21.3]}
82. Kh2 {[%clk 0:00:17.7]} 82... Bh5 {[%clk 0:00:21]} 83. Bxh5 {[%clk
0:00:17.2]} 83... Kxh5 {[%clk 0:00:20.8]} 84. Kh3 {[%clk 0:00:18.1]} 84... Kg5
{[%clk 0:00:20.1]} 85. Kg3 {[%clk 0:00:19]} 85... h5 {[%clk 0:00:20.7]} 86. Kh3
{[%clk 0:00:19.9]} 86... h4 {[%clk 0:00:21.6]} 87. Kh2 {[%clk 0:00:17.2]} 87...
Kg6 {[%clk 0:00:22.5]} 88. Kh3 {[%clk 0:00:17.2]} 88... Kg7 {[%clk 0:00:23.4]}
89. Kh2 {[%clk 0:00:18.1]} 89... Kg8 {[%clk 0:00:24.3]} 90. Kh3 {[%clk 0:00:18]}
90... Kh8 {[%clk 0:00:23]} 91. Kxh4 {[%clk 0:00:18.9]} 1/2-1/2

[Event "*** Titled Tuesday Blitz"]
[Site "Chess.com"]
[Date "2020.04.07"]
[Round "4"]
[White "BeanScreen"]
[Black "2165149677570"]
[Result "0-1"]
[WhiteElo "2603"]
[BlackElo "2375"]
[TimeControl "180+1"]
[EndTime "13:43:10 PDT"]
[Termination "2165149677570 won by checkmate"]

1. e4 {[%clk 0:03:00.5]} 1... c5 {[%clk 0:03:00]} 2. Nf3 {[%clk 0:03:00.7]} 2...
d6 {[%clk 0:03:00.3]} 3. d4 {[%clk 0:03:01.2]} 3... cxd4 {[%clk 0:03:01.2]} 4.
Nxd4 {[%clk 0:03:02.1]} 4... Nf6 {[%clk 0:03:01.9]} 5. Nc3 {[%clk 0:03:02.6]}
5... a6 {[%clk 0:03:02.5]} 6. Be3 {[%clk 0:03:02.9]} 6... e5 {[%clk 0:03:02.9]}
7. Nb3 {[%clk 0:03:03.5]} 7... Be6 {[%clk 0:03:03.4]} 8. h3 {[%clk 0:03:03.8]}
8... Be7 {[%clk 0:03:00.2]} 9. f4 {[%clk 0:03:03.2]} 9... exf4 {[%clk
0:02:59.6]} 10. Bxf4 {[%clk 0:03:04.1]} 10... Nc6 {[%clk 0:03:00]} 11. Qe2
{[%clk 0:03:04.3]} 11... Ne5 {[%clk 0:02:59.8]} 12. O-O-O {[%clk 0:03:04.4]}
12... Qc7 {[%clk 0:02:55]} 13. g4 {[%clk 0:03:03.7]} 13... h6 {[%clk 0:02:50.4]}
14. Kb1 {[%clk 0:03:01.2]} 14... b5 {[%clk 0:02:50.2]} 15. Nd5 {[%clk
0:02:49.7]} 15... Nxd5 {[%clk 0:02:43.4]} 16. exd5 {[%clk 0:02:50.6]} 16... Bd7
{[%clk 0:02:44]} 17. Bg2 {[%clk 0:02:43.7]} 17... Ng6 {[%clk 0:02:41]} 18. Bg3
{[%clk 0:02:38.6]} 18... O-O {[%clk 0:02:41]} 19. h4 {[%clk 0:02:37]} 19... Bf6
{[%clk 0:02:38]} 20. g5 {[%clk 0:02:36]} 20... Be5 {[%clk 0:02:33.9]} 21. Bxe5
{[%clk 0:02:34.7]} 21... Nxe5 {[%clk 0:02:34.8]} 22. Qd2 {[%clk 0:02:15]} 22...
h5 {[%clk 0:02:28.5]} 23. Be4 {[%clk 0:02:11.4]} 23... g6 {[%clk 0:02:21.3]} 24.
Nd4 {[%clk 0:02:08.1]} 24... a5 {[%clk 0:02:05.1]} 25. Rhf1 {[%clk 0:02:03.1]}
25... b4 {[%clk 0:01:55.6]} 26. Rf6 {[%clk 0:02:00.8]} 26... a4 {[%clk 0:01:50]}
27. Rdf1 {[%clk 0:02:00.1]} 27... Qc5 {[%clk 0:01:21.9]} 28. Nc6 {[%clk
0:01:19.7]} 28... Nc4 {[%clk 0:00:30.1]} 29. Qf4 {[%clk 0:01:15.7]} 29... Bxc6
{[%clk 0:00:17.8]} 30. Rxf7 {[%clk 0:01:12.6]} 30... Nd2+ {[%clk 0:00:05]} 31.
Qxd2 {[%clk 0:00:43.5]} 31... Rxf7 {[%clk 0:00:05.1]} 32. Rxf7 {[%clk
0:00:36.4]} 32... Kxf7 {[%clk 0:00:06]} 33. Qf4+ {[%clk 0:00:20.6]} 33... Kg8
{[%clk 0:00:06]} 34. dxc6 {[%clk 0:00:20.8]} 34... Qg1+ {[%clk 0:00:06.1]} 35.
Qc1 {[%clk 0:00:21.3]} 35... Qxc1+ {[%clk 0:00:06.4]} 36. Kxc1 {[%clk
0:00:22.2]} 36... Kf7 {[%clk 0:00:05.9]} 37. Kd2 {[%clk 0:00:21.2]} 37... Rc8
{[%clk 0:00:05.9]} 38. Kd3 {[%clk 0:00:19.6]} 38... Ke6 {[%clk 0:00:05.5]} 39.
Kc4 {[%clk 0:00:19]} 39... Ke5 {[%clk 0:00:03.2]} 40. Bg2 {[%clk 0:00:17.3]}
40... Rf8 {[%clk 0:00:02.5]} 41. Kb5 {[%clk 0:00:16.7]} 41... d5 {[%clk
0:00:02.4]} 42. Kb6 {[%clk 0:00:16.3]} 42... Kd6 {[%clk 0:00:03.3]} 43. Bh3
{[%clk 0:00:14]} 43... Rf7 {[%clk 0:00:02.8]} 44. Bd7 {[%clk 0:00:13.6]} 44...
a3 {[%clk 0:00:02.6]} 45. bxa3 {[%clk 0:00:13.6]} 45... bxa3 {[%clk 0:00:03.5]}
46. Be8 {[%clk 0:00:13.2]} 46... Rf8 {[%clk 0:00:03]} 47. Bd7 {[%clk 0:00:11.8]}
47... d4 {[%clk 0:00:03.4]} 48. Kb5 {[%clk 0:00:11]} 48... Rd8 {[%clk 0:00:03]}
49. Kc4 {[%clk 0:00:11.2]} 49... d3 {[%clk 0:00:02.8]} 50. cxd3 {[%clk
0:00:11.2]} 50... Kc7 {[%clk 0:00:03.7]} 51. d4 {[%clk 0:00:11.3]} 51... Rf8
{[%clk 0:00:04.6]} 52. d5 {[%clk 0:00:11.3]} 52... Rf4+ {[%clk 0:00:05.5]} 53.
Kc5 {[%clk 0:00:11.9]} 53... Rf1 {[%clk 0:00:04.8]} 54. d6+ {[%clk 0:00:12.1]}
54... Kd8 {[%clk 0:00:05.7]} 55. Be6 {[%clk 0:00:11.6]} 55... Rc1+ {[%clk
0:00:06]} 56. Kb6 {[%clk 0:00:12.1]} 56... Rb1+ {[%clk 0:00:06.4]} 57. Bb3
{[%clk 0:00:11.3]} 57... Rxb3+ {[%clk 0:00:06]} 58. axb3 {[%clk 0:00:11.8]}
58... a2 {[%clk 0:00:06.9]} 59. c7+ {[%clk 0:00:12]} 59... Kd7 {[%clk
0:00:07.8]} 60. Kb7 {[%clk 0:00:12.3]} 60... a1=Q {[%clk 0:00:08.7]} 61. c8=Q+
{[%clk 0:00:12.9]} 61... Kxd6 {[%clk 0:00:09.6]} 62. Qf8+ {[%clk 0:00:12.5]}
62... Ke6 {[%clk 0:00:09.2]} 63. Qe8+ {[%clk 0:00:11.8]} 63... Kf5 {[%clk
0:00:09.4]} 64. Qd7+ {[%clk 0:00:11.8]} 64... Kf4 {[%clk 0:00:08.4]} 65. Qd6+
{[%clk 0:00:11.9]} 65... Kg4 {[%clk 0:00:08.4]} 66. Qxg6 {[%clk 0:00:11.4]}
66... Qh1+ {[%clk 0:00:07.4]} 67. Kb6 {[%clk 0:00:09]} 67... Kxh4 {[%clk
0:00:07.9]} 68. Qf5 {[%clk 0:00:08]} 68... Qg1+ {[%clk 0:00:08.2]} 69. Qc5
{[%clk 0:00:05.7]} 69... Qxg5 {[%clk 0:00:09.1]} 70. Qf2+ {[%clk 0:00:04]} 70...
Qg3 {[%clk 0:00:09.3]} 71. Qf6+ {[%clk 0:00:03.9]} 71... Kg4 {[%clk 0:00:10.2]}
72. Kc5 {[%clk 0:00:03.4]} 72... Qg1+ {[%clk 0:00:09.8]} 73. Kc4 {[%clk
0:00:03.2]} 73... Qc1+ {[%clk 0:00:10]} 74. Kb5 {[%clk 0:00:02.9]} 74... Qg5+
{[%clk 0:00:09]} 75. Qxg5+ {[%clk 0:00:03.3]} 75... Kxg5 {[%clk 0:00:09.9]} 76.
b4 {[%clk 0:00:03.8]} 76... h4 {[%clk 0:00:10.8]} 77. Kc6 {[%clk 0:00:04.3]}
77... h3 {[%clk 0:00:11.7]} 78. b5 {[%clk 0:00:05.2]} 78... h2 {[%clk
0:00:12.6]} 79. b6 {[%clk 0:00:06]} 79... h1=Q+ {[%clk 0:00:13.5]} 80. Kc7
{[%clk 0:00:06.9]} 80... Qc1+ {[%clk 0:00:13.6]} 81. Kb8 {[%clk 0:00:07.4]}
81... Kf6 {[%clk 0:00:13.5]} 82. b7 {[%clk 0:00:08.3]} 82... Ke7 {[%clk
0:00:14]} 83. Ka8 {[%clk 0:00:08.6]} 83... Qa3+ {[%clk 0:00:14.5]} 84. Kb8
{[%clk 0:00:09.2]} 84... Kd6 {[%clk 0:00:13.8]} 85. Kc8 {[%clk 0:00:09.4]} 85...
Qh3+ {[%clk 0:00:14.2]} 86. Kb8 {[%clk 0:00:09.4]} 86... Kc6 {[%clk 0:00:13.4]}
87. Ka8 {[%clk 0:00:08.4]} 87... Qa3+ {[%clk 0:00:13.8]} 88. Kb8 {[%clk
0:00:08.9]} 88... Qa6 {[%clk 0:00:14.3]} 89. Kc8 {[%clk 0:00:09]} 89... Qxb7+
{[%clk 0:00:14.8]} 90. Kd8 {[%clk 0:00:09.9]} 90... Qd7# {[%clk 0:00:15.7]} 0-1